Cogmind - Beta 13 @@@ ROGUE MODE // 2024.05.10 @ 18:09:21 Player: Calliope Result: Destroyed by S-10 Pest with Light Assault Rifle Performance ------------- Evolutions (2) 1000 Regions Visited (6) 1200 Robots Destroyed (15) 75 Value Destroyed (390) 390 Prototype IDs (3) 60 Alien Tech Used (0) 0 Bonus (661) 661 TOTAL SCORE: 3386 Bonus ------- Follower Combat Kills 161 Entered Garrisons 200 Aligned with FarCom 300 Cogmind --------- Core Integrity 0/550 Matter 300/300 Energy 100/100 System Corruption 1% Temperature Cool (0) Movement Core (50) Location -8/Garrison Parts ------- > --- POWER (1) -------- (None) > --- PROPULSION (4) --- (None) > --- UTILITY (4) ------ (None) > --- WEAPON (2) ------- (None) > --- INVENTORY (5) ---- Improved Ion Engine Light Treads Improved Targeting Computer Improved Targeting Computer Peak State ------------ > --- POWER ------------ Improved Ion Engine > --- PROPULSION ------- Aluminum Leg Aluminum Leg > --- UTILITY ---------- Superbattery System Restoration Module System Restoration Module Trap Reconfigurator > --- WEAPON ----------- AWS/Gauss > --- INVENTORY -------- Improved Ion Engine Light Nuclear Core Light Treads Improved Targeting Computer Improved Targeting Computer [Rating: 48] Favorites ----------- Power Improved Ion Engine Engine Improved Ion Engine Propulsion Aluminum Leg Treads Light Treads Leg Aluminum Leg Wheel Compact Wheel Utility Trap Reconfigurator Device Trap Reconfigurator Storage Superbattery Protection Insulated Plating Weapon AWS/Gauss Energy Gun EM Pulse Gun Ballistic Gun AWS/Gauss Build | -11 -10 -10 -10 -9 -8 -8 ------- Run | Yrd Mat Min Exi Min Mat Gar Slots Evolved 4 | . . . . . 4 . Power . | . . . . . . . Propulsion 2 | . . . . . 2 . Utility 2 | . . . . . 2 . Weapon . | . . . . . . . Parts Attached 22 | 4 . . 7 3 3 5 Power 4 | 1 . . 1 1 . 1 Engine 4 | 1 . . 1 1 . 1 Core . | . . . . . . . Reactor . | . . . . . . . Propulsion 6 | . . . 2 2 . 2 Treads 2 | . . . . . . 2 Leg 2 | . . . . 2 . . Wheel 2 | . . . 2 . . . Hover . | . . . . . . . Flight . | . . . . . . . Utility 7 | 1 . . 2 . 3 1 Device 3 | . . . 1 . 2 . Storage 3 | 1 . . 1 . 1 . Processor . | . . . . . . . Hackware . | . . . . . . . Protection 1 | . . . . . . 1 Artifact . | . . . . . . . Weapon 5 | 2 . . 2 . . 1 Energy Gun 2 | 1 . . . . . 1 Energy Cannon . | . . . . . . . Ballistic Gun 3 | 1 . . 2 . . . Ballistic Cannon . | . . . . . . . Launcher . | . . . . . . . Special Weapon . | . . . . . . . Impact Weapon . | . . . . . . . Slashing Weapon . | . . . . . . . Piercing Weapon . | . . . . . . . Special Melee Weapon . | . . . . . . . Unidentified Prototypes 3 | . . . 3 . . . Parts Lost 6 | . . . . . 1 5 Power 2 | . . . . . 1 1 Propulsion 2 | . . . . . . 2 Utility 1 | . . . . . . 1 Weapon 1 | . . . . . . 1 Highest Loss Streak 4 | . . . . . 1 4 To Critical Strikes . | . . . . . . . Average Slot Usage (%) 54 | . . . 34 83 48 4 Engine 6 | . . . . 13 8 1 Leg 13 | . . . . 27 17 . Device 11 | . . . 11 14 9 . Storage 10 | . . . 11 14 5 . Ballistic Gun 10 | . . . 10 14 8 . Naked Turns 389 | . 35 108 121 . 7 118 Heaviest Build 23 | 11 . . 15 22 23 9 Greatest Support 40 | 3 3 3 26 20 20 40 Greatest Overweight (x) 4 | 3 . . 4 4 1 2 Average Overweight (x) 1 | 2 . . 2 . . . Largest Inventory Capacity 8 | 8 5 5 5 5 5 5 Average Capacity 5 | 7 5 5 5 5 5 5 Most Carried 5 | 4 4 4 4 4 5 4 Average Carried 2 | 2 4 4 . 3 4 4 Final Capacity 8 | 8 5 5 5 5 5 5 Final Carried 4 | 4 4 4 . 4 4 4 Class Distribution -------------------- 100% | Mutant Dominant Class ---------------- Mutant | -10/Materials Mutant | -10/Mines Mutant | -10/Exiles Mutant | -9/Mines Mutant | -8/Materials Mutant | -8/Garrison Resources | -11 -10 -10 -10 -9 -8 -8 ----------- Run | Yrd Mat Min Exi Min Mat Gar Matter Collected 407 | 240 . . . 100 30 37 Remotely . | . . . . . . . Salvage Created 460 | . . . . 291 169 . Parts 40 | . . . . 25 15 . Haulers Intercepted . | . . . . . . . Recyclers Shooed . | . . . . . . . Parts Field Recycled . | . . . . . . . Retrieved Matter . | . . . . . . . Parts Self-Destructed . | . . . . . . . Prevented . | . . . . . . . Kills | -11 -10 -10 -10 -9 -8 -8 ------- Run | Yrd Mat Min Exi Min Mat Gar Combat Hostiles Destroyed 12 | . . . . 10 2 . Guns 12 | . . . . 10 2 . Classes Destroyed 5 | . . . . 3 2 . Operator 1 | . . . . . 1 . Watcher 2 | . . . . . 2 . Swarmer 6 | . . . . 6 . . Grunt 5 | . . . . 3 2 . Sentry 1 | . . . . 1 . . Best Kill Streak 4 | . . . . 4 2 . Combat Bots Only 4 | . . . . 4 2 . Max Kills in Single Turn 1 | . . . . 1 1 . Gunslinging . | . . . . . . . Exploded . | . . . . . . . Melee . | . . . . . . . Uniques/NPCs Destroyed . | . . . . . . . Combat | -11 -10 -10 -10 -9 -8 -8 -------- Run | Yrd Mat Min Exi Min Mat Gar Hostile Shots Fired 146 | . . . . 22 33 91 Missed 44 | . . . . 6 11 27 Damage Taken 1389 | . . . . 159 338 892 Core 586 | . . . . 31 144 411 Absorbed by Shields . | . . . . . . . Core Remaining (%) 93 | 100 . . . 87 . . Volleys Fired 2 | . . . . . . 2 Largest 1 | . . . . . . 1 Hottest 56 | . . . . . . 56 Shots Fired 56 | . . . . 30 24 2 Gun 56 | . . . . 30 24 2 Cannon . | . . . . . . . Launcher . | . . . . . . . Special . | . . . . . . . Kinetic 54 | . . . . 30 24 . Thermal 2 | . . . . . . 2 Explosive . | . . . . . . . Electromagnetic . | . . . . . . . Robot Hit Streak 10 | . . . . 10 8 6 Robot Miss Streak 3 | . . . . 3 2 . Penetration Max . | . . . . . . . Secondary Targets . | . . . . . . . Autonomous 55 | . . . . 30 25 . Shots Hit Robots 41 | . . . . 21 18 2 Core Hits 19 | . . . . 11 7 1 Critical Kills . | . . . . . . . Critical Parts Destroyed . | . . . . . . . Critical Strikes . | . . . . . . . Melee Attacks . | . . . . . . . Impact . | . . . . . . . Slashing . | . . . . . . . Piercing . | . . . . . . . Sneak Attacks . | . . . . . . . Combat Hostiles . | . . . . . . . Follow-up Attacks . | . . . . . . . Damage Inflicted 1155 | . . . . 598 503 54 Guns 1123 | . . . . 596 499 28 Cannons . | . . . . . . . Explosions . | . . . . . . . Melee . | . . . . . . . Ramming 32 | . . . . 2 4 26 Kinetic 1095 | . . . . 596 499 . Thermal 28 | . . . . . . 28 Explosive . | . . . . . . . Electromagnetic . | . . . . . . . Impact . | . . . . . . . Slashing . | . . . . . . . Piercing . | . . . . . . . Highest Corruption 1 | . . . . . . 1 Average Corruption 1 | . . . . . . 1 Corruption Purged . | . . . . . . . Corruption Blocked . | . . . . . . . Overload Shots . | . . . . . . . Overflow Damage . | . . . . . . . Projectiles . | . . . . . . . Explosions . | . . . . . . . Melee . | . . . . . . . Knockbacks . | . . . . . . . Impact . | . . . . . . . Kinetic . | . . . . . . . Secondary . | . . . . . . . Self-Inflicted Damage 10 | . . . . . . 10 Shots . | . . . . . . . Rammed 7 | . . . . . . 7 Targets Rammed 9 | . . . . 1 1 7 Kicked 2 | . . . . 1 1 . Crushed . | . . . . . . . Highest Temperature 91 | . . . . . . 91 Average Temperature 53 | . . . . . . 53 Received Heat Transfer 483 | . . . . 42 63 378 Siege Activations . | . . . . . . . Robots Corrupted . | . . . . . . . Combat Hostiles . | . . . . . . . Parts Fried . | . . . . . . . Impact Corruptions . | . . . . . . . Robots Melted . | . . . . . . . Combat Hostiles . | . . . . . . . Parts Melted . | . . . . . . . Heat Transferred 74 | . . . . . . 74 Parts Sabotaged . | . . . . . . . Parts Stolen . | . . . . . . . Parts Stripped . | . . . . . . . Power Chain Reactions . | . . . . . . . Alert | -11 -10 -10 -10 -9 -8 -8 ------- Run | Yrd Mat Min Exi Min Mat Gar Peak Influence 280 | . . 92 . 253 151 280 Initial 98 | . . . . . 5 98 Average 83 | . . 32 . 86 66 172 Maximum Alert Level 1 | . . . . 1 . 1 Low Security (%) 81 | 100 100 100 . 78 100 55 Level 1 18 | . . . . 21 . 44 Level 2 . | . . . . . . . Level 3 . | . . . . . . . Level 4 . | . . . . . . . Level 5 . | . . . . . . . High Security . | . . . . . . . Max Security . | . . . . . . . Squads Dispatched . | . . . . . . . Investigation . | . . . . . . . Extermination . | . . . . . . . Reinforcement . | . . . . . . . Assault . | . . . . . . . Garrison . | . . . . . . . Intercept . | . . . . . . . Searches Triggered . | . . . . . . . Construction Impeded . | . . . . . . . Haulers Reinforced . | . . . . . . . Active Scanning Responses . | . . . . . . . Cargo Convoy Interrupts . | . . . . . . . Stealth | -11 -10 -10 -10 -9 -8 -8 --------- Run | Yrd Mat Min Exi Min Mat Gar Distress Signals . | . . . . . . . Communications Jammed . | . . . . . . . Distress Signals . | . . . . . . . Times Spotted 41 | . . 3 . 11 8 19 Peak Tracking Total 12 | . . 2 . 3 4 12 Tactical Retreats 6 | . . 1 . 2 . 3 Traps | -11 -10 -10 -10 -9 -8 -8 ------- Run | Yrd Mat Min Exi Min Mat Gar Traps Triggered . | . . . . . . . Indirectly . | . . . . . . . Trap Hack Attempts . | . . . . . . . Triggered . | . . . . . . . Disarmed . | . . . . . . . Reprogrammed . | . . . . . . . Reused . | . . . . . . . Traps Reconfigurated 6 | . . . . . 6 . Traps Extracted . | . . . . . . . Installed . | . . . . . . . Triggered . | . . . . . . . Machines | -11 -10 -10 -10 -9 -8 -8 ---------- Run | Yrd Mat Min Exi Min Mat Gar Machines Disabled 1 | . . . . . 1 . Max in Single Turn 1 | . . . . . 1 . Machines Repaired . | . . . . . . . Machines Dismantled . | . . . . . . . Machines Sabotaged . | . . . . . . . Overloaded Fab Kills . | . . . . . . . Hacking | -11 -10 -10 -10 -9 -8 -8 --------- Run | Yrd Mat Min Exi Min Mat Gar Machines Accessed 3 | . . . . . 2 1 Terminals 1 | . . . . . . 1 Fabricators . | . . . . . . . Repair Stations 1 | . . . . . 1 . Recycling Units . | . . . . . . . Scanalyzers . | . . . . . . . Garrison Access 1 | . . . . . 1 . Total Hacks 9 | . . . . . 6 3 Successful 3 | . . . . . 3 . Failed 6 | . . . . . 3 3 Catastrophic . | . . . . . . . Database Lockouts . | . . . . . . . Manual 1 | . . . 1 . . . Terminals 3 | . . . . . . 3 Fabricators . | . . . . . . . Repair Stations 5 | . . . . . 5 . Recycling Units . | . . . . . . . Scanalyzers . | . . . . . . . Garrison Access 1 | . . . . . 1 . Terminal Hacks . | . . . . . . . Fabricator Hacks . | . . . . . . . Repair Station Hacks 2 | . . . . . 2 . Scan Component 1 | . . . . . 1 . Repair 1 | . . . . . 1 . Recycling Unit Hacks . | . . . . . . . Scanalyzer . | . . . . . . . Garrison Access Hacks 1 | . . . . . 1 . Unlock Access 1 | . . . . . 1 . Unauthorized Hacks . | . . . . . . . Terminals . | . . . . . . . Fabricators . | . . . . . . . Repair Stations . | . . . . . . . Recycling Units . | . . . . . . . Scanalyzers . | . . . . . . . Garrison Access . | . . . . . . . Data Cores Recovered 1 | . . . . . 1 . Used . | . . . . . . . Hacking Detections 2 | . . . . . 1 1 Full Trace Events 2 | . . . . . 1 1 Feedback Events 1 | . . . . . . 1 Corruption 1 | . . . . . . 1 Feedback Blocked . | . . . . . . . Robot Schematics Acquired . | . . . . . . . Robots Built . | . . . . . . . Authchips . | . . . . . . . Time . | . . . . . . . Total Robot Build Rating . | . . . . . . . Part Schematics Acquired . | . . . . . . . Parts Built . | . . . . . . . Authchips . | . . . . . . . Time . | . . . . . . . Total Part Build Rating . | . . . . . . . Parts Repaired . | . . . . . . . Time 38 | . . . . . 38 . Parts Recycled . | . . . . . . . Recycled Matter . | . . . . . . . Retrieved Matter . | . . . . . . . Retrieved Components . | . . . . . . . Parts Scanalyzed . | . . . . . . . Part Schematics Acquired . | . . . . . . . Parts Damaged . | . . . . . . . Bothacking | -11 -10 -10 -10 -9 -8 -8 ------------ Run | Yrd Mat Min Exi Min Mat Gar Used RIF Installer . | . . . . . . . Robots Hacked . | . . . . . . . Non-combat . | . . . . . . . Combat . | . . . . . . . Robot Hacks Applied . | . . . . . . . Relay Couplers Released . | . . . . . . . Fabnet Peak Effective % . | . . . . . . . Robots Rewired 3 | . . . . . . 3 Allies Hacked . | . . . . . . . Hacks Repelled . | . . . . . . . Allies | -11 -10 -10 -10 -9 -8 -8 -------- Run | Yrd Mat Min Exi Min Mat Gar Total Allies 7 | . . 1 . 3 . 3 Largest Group 3 | . . 1 . 3 . 2 Highest-Rated Group 62 | . . 31 . 40 . 62 Highest-Rated Ally 31 | . . 31 . 16 . 31 Total Orders . | . . . . . . . Ally Attacks 33 | . . 10 . 15 . 8 Total Damage 379 | . . 105 . 188 . 86 Kills 5 | . . 1 . 2 . 2 Allies Corrupted . | . . . . . . . Allies Melted . | . . . . . . . Intel | -11 -10 -10 -10 -9 -8 -8 ------- Run | Yrd Mat Min Exi Min Mat Gar Robot Analysis Total . | . . . . . . . Derelict Logs Recovered 1 | . . . . 1 . . Drone Launches . | . . . . . . . Drone Recoveries . | . . . . . . . Exploration | -11 -10 -10 -10 -9 -8 -8 ------------- Run | Yrd Mat Min Exi Min Mat Gar Turns Passed 2578 | 77 35 108 836 1132 231 159 Spaces Moved 1674 | 45 65 190 481 575 121 197 Core 996 | 45 65 190 478 9 15 194 Treads 3 | . . . . . . 3 Legs 672 | . . . . 566 106 . Wheels 3 | . . . 3 . . . Hover . | . . . . . . . Flight . | . . . . . . . Fastest Speed 50 | 50 50 50 50 120 50 50 Average Speed 137 | 152 50 50 154 186 151 52 Slowest Speed 250 | 200 50 50 250 250 190 160 Overloaded Moves . | . . . . . . . Propulsion Burnouts . | . . . . . . . Robots Hopped . | . . . . . . . Cave-ins Triggered . | . . . . . . . Exploration Rate (%) 37 | 4 17 35 62 87 21 34 Regions Visited 6 Branch Regions 3 Pre-discovered Areas . | . . . . . . . Known Exits Taken 1 | . . . . . 1 . Unknown Exits Taken 5 | 1 1 1 1 1 . . Scrap Searched 1 | . . . . 1 . . Spaces Dug . | . . . . . . . Terrain Destroyed 49 | . . . . 29 20 . Melee . | . . . . . . . Projectile 49 | . . . . 29 20 . AOE . | . . . . . . . Terrain Rammed . | . . . . . . . Walls Destroyed . | . . . . . . . Machines Disabled . | . . . . . . . Actions | -11 -10 -10 -10 -9 -8 -8 --------- Run | Yrd Mat Min Exi Min Mat Gar Total 1943 | 52 66 202 580 631 168 244 Wait 185 | . 2 13 82 49 39 . Move 1665 | 44 64 189 480 574 120 194 Hop . | . . . . . . . Pick Up 12 | 4 . . 3 4 1 . Fast Attach 15 | 4 . . . 3 3 5 Attach 7 | . . . 7 . . . Detach 3 | . . . 3 . . . Swap . | . . . . . . . Drop 8 | . . . 4 . 4 . Fire 2 | . . . . . . 2 Melee . | . . . . . . . Ram 3 | . . . . . . 3 Kick 2 | . . . . 1 1 . Crush 4 | . . . . . . 4 Escape Stasis . | . . . . . . . Rewire 37 | . . . 1 . . 36 Trap . | . . . . . . . Miscellaneous . | . . . . . . . Route ------- -11/Scrapyard -10/Materials -10/Mines -10/Exiles (discovered 2 exits: [*Min x2]) -9/Mines (discovered 2 exits: *Mat x2) -8/Materials (discovered 2 exits: Fac / Gar) -8/Garrison (discovered 1 exit: [*Mat]) History --------- Turn | Location | Event 47 | -11/Scrapyard | Discovered new exit (range 14) 78 | -11/Scrapyard | Entered Materials 78 | -10/Materials | Released all parts (4) 105 | -10/Materials | Discovered new exit (range 15) 113 | -10/Materials | Entered Mines 196 | -10/Mines | Received a Mining Laser from a helpful Derelict 211 | -10/Mines | Deemed a non-threat by the Exiles lab entrance 211 | -10/Mines | Discovered new exit (range 5) 221 | -10/Mines | Entered Exiles 238 | -10/Exiles | Discovered new exit (range 15) 243 | -10/Exiles | Met 8R-AWN 263 | -10/Exiles | Met EX-HEX 297 | -10/Exiles | Met EX-BIN 304 | -10/Exiles | Aligned with FarCom system 305 | -10/Exiles | Given EX-Vault access code 314 | -10/Exiles | Build established: Mutant 322 | -10/Exiles | Opened EX-Vault 324 | -10/Exiles | Found Prototype Device 326 | -10/Exiles | Found Prototype Storage 330 | -10/Exiles | Found Prototype Ballistic Gun 342 | -10/Exiles | Warned to stay clear of 0b10 Research branches 351 | -10/Exiles | Identified Trap Reconfigurator 352 | -10/Exiles | Identified Superbattery 434 | -10/Exiles | Identified AWS/Gauss 462 | -10/Exiles | Met EX-DEC 547 | -10/Exiles | Discovered new exit (range 14) 1057 | -10/Exiles | Stole three prototypes: AWS/Gauss, Superbattery, Trap Reconfigurator 1057 | -10/Exiles | Entered Mines 1058 | -9/Mines | Met a Derelict bent on vengeance 1110 | -9/Mines | Joined a pair of Derelicts in attacking an 0b10 outpost 1181 | -9/Mines | Learned location of 1 exit from Materials 1260 | -9/Mines | Assisted by bots powering up and referring to "LRC-V3" 1467 | -9/Mines | Discovered new exit (range 11) 1495 | -9/Mines | Discovered new exit (range 15) 2189 | -9/Mines | Entered Materials 2189 | -8/Materials | Evolved 4 slots: Propulsion x2, Utility x2 2190 | -8/Materials | Identified exit to Factory 2413 | -8/Materials | Released all parts (4) 2419 | -8/Materials | Identified exit to Garrison 2420 | -8/Materials | Entered Garrison 2470 | -8/Garrison | Triggered checkpoint 2474 | -8/Garrison | Triggered checkpoint 2487 | -8/Garrison | Discovered new exit (range 15) 2495 | -8/Garrison | Attempted to access garrison exit controls, blocked by remote lockdown 2502 | -8/Garrison | Core integrity fell below 50% 2560 | -8/Garrison | Core integrity fell below 20% 2579 | -8/Garrison | Destroyed by S-10 Pest with Light Assault Rifle Last Messages --------------- 02554_ Slammed into B-36 Bruiser. 02555_ Lgt. Treads destroyed. 02556_ Slammed into B-36 Bruiser. 02557_ Lgt. Treads destroyed. 02557_ Lgt. Angular Momentum Engine destroyed. 02559_ Beam Rifle destroyed. 02559_ Slammed into G-47 Trooper. 02574_ C-30 ARC bursts open, deploying its payload. 02574_ S-10 Pest unfolds itself. 02575_ Attempting to rewire C-30 ARC. 02575_ C-30 ARC is unpowered. 02576_ Attempting to rewire C-30 ARC. 02576_ C-30 ARC is unpowered. 02577_ Attempting to rewire C-30 ARC. 02577_ C-30 ARC is unpowered. 02578_ Attempting to rewire C-30 ARC. 02578_ C-30 ARC is unpowered. 02579_ Attempting to rewire C-30 ARC. 02579_ C-30 ARC is unpowered. Map ----- +----------------------------------------------------+ | ?????????????????????????????????????????????????? | | ?????????????????????????????????????????????????? | | ?????????????????????????????????????????????????? | | ?????????????????????????????????????????????????? | | ?????????????????????????????????????????????????? | | ?????????????????????????????????????????????????? | | ?????????????????????????????????????????????????? | | ?????????????????????????????????????????????????? | | ?????????????????????????????????????????????????? | | ?????????????????????????????????????????????????? | | ?????????????????????????????????????????????????? | | ?????????????????????????? ?????????????????????? | | ?????????????????????????? ?????????????????????? | | ?????????????????????????? ?????????????????????? | | ?????????????????????????? #????????????????????? | | ?????????????????????????? #????????????????????? | | ?????????????????????????# #????????????????????? | | ????????????????????????? #????????????????????? | | ????????????????????????? #????????????????????? | | ????????????????????????? #????????????????????? | | ?????????????????????????# #????????????????????? | | ?????????????????????????# #????????????????????? | | ?????????????????????????# #????????????????????? | | ?????????????????????????# #????????????????????? | | ???????????????????????### #????????????????????? | | ?????????????????#Y#####C@ #????????????????????? | | ?????????????????# C ss #????????????????????? | | ?????????????????# #####% s #??????????????????### | | ???????????????????????### #??????????????????# | | ???????????????########### #################### < | | ???????????????# | | ???????????????# g | | ???????????????# ggg g | | ???????????????# ############################ ## | | ???????????????# #??????????????????????????# ## | | ???????????????# #??????????????????????????# | | ???????????????# #??????????????????????????#%! | | ?????????#?????# #?????????????????????????##=%! | | ?????????#+##### ##????????????????????????#[%=! | | ?????????#%" ## T#????????????????????????##%%# | | ##########" ## ##?????????????????????????#%% | | #??????????????????????????# !% | | #??????????????????????????#### | | #?????????????????????????????? | | ##### ## ## #?????????????????????????????? | | ??### ## ## #?????????????????????????????? | | ??# "?????????????????????????????? | | ??# "?????????????????????????????? | | ??# "?????????????????????????????? | | ??# "?????????????????????????????? | +----------------------------------------------------+ Best States ------------- Heat Dissipation 31 Energy Generation 18 Energy Capacity 1765 Matter Stores 300 Matter Capacity 300 Sight Range 16 Terrain Scan Density 10 Armor Coverage 150 Resistance: EM 15 Evasion (%) 55 Recoil Reduction 2 Item Schematics ----------------- None Robot Schematics ------------------ None Fabricated ------------ Nothing Alien Tech Used ----------------- None Achievements -------------- A New Friend Challenges ------------ None Game ------ Seed MolecularSpreadShielding Manual? 0 Play Time 00:16:27 Cumulative 24.4 hours Start 2024.05.10 @ 17:54:23 End 2024.05.10 @ 18:09:21 Sessions 1 Manual Loads 0 Difficulty Rogue Special Mode None Game No. 43 Rogue 41 Adventurer 0 Explorer 2 Win Type - Total 0 Types 0/0/0/0/0/0/0/0/0 Lore% 17 Gallery% 28 Achievement% 28 Wizard Run 0 Options --------- Layout 2 ASCII 0 Keyboard 1 Movement Vi Keybinds 0 Fullscreen 2 Font 32/SmallcapsGlow Map View 50x44 Zoom Use 0% Tactical HUD 1 Map Filters NONE Filters NONE Steam 1 RUN: 9ea02636-13c8-43a4-8dd7-4b4884d5c93b